fUST/lending_fUST_20251203
["ID","MTS","AMOUNT","RATE_DAILY","PERIOD"]
[395452949,1764693043495,-500.0,0.00013698,2]
[395452950,1764693043504,-510.64718282,0.00013698,2]
[395452951,1764693043514,-500.0,0.00013698,2]
[395452952,1764693043524,-500.0,0.00013698,2]
[395452953,1764693043533,-857.44,0.00013698,2]
[395452954,1764693043544,-500.0,0.00013698,2]
[395452955,1764693043553,-500.0,0.00013698,2]
[395452956,1764693043563,-500.0,0.00013698,2]
[395452957,1764693043572,-500.0,0.00013698,2]
[395452958,1764693043582,-772.77,0.00013698,2]
[395452959,1764693043591,-500.0,0.00013698,2]
[395452960,1764693043601,-500.0,0.00013698,2]
[395452961,1764693043612,-503.64300832,0.00013698,2]
[395452962,1764693043622,-522.82,0.00013698,2]
[395452963,1764693043632,-500.0,0.00013698,2]
[395452964,1764693043642,-519.67,0.00013698,2]
[395452965,1764693043651,-500.0,0.00013698,2]
[395452966,1764693043660,-1670.93,0.00013698,2]
[395452967,1764693043670,-500.0,0.00013698,2]
[395452968,1764693043680,-500.6958918,0.00013698,2]
[395452969,1764693043690,-1380.64,0.00013698,2]
[395452970,1764693043704,-500.68388781,0.00013698,2]
[395452971,1764693043713,-500.26081366,0.00013698,2]
[395452972,1764693043723,-501.8883485,0.00013698,2]
[395452973,1764693043732,-500.0,0.00013698,2]
[395452974,1764693043742,-500.0,0.00013698,2]
[395452975,1764693043751,-755.66,0.00013698,2]
[395452976,1764693043761,-998.53,0.00013698,2]
[395452977,1764693043772,-1643.8,0.00013698,2]
[395452978,1764693043782,-883.43,0.00013698,2]
[395452979,1764693043793,-241.97436354,0.00013698,2]
[395452980,1764693043803,-500.0,0.00013698,2]
[395452981,1764693043814,-500.0,0.00013698,2]
[395452982,1764693043823,-500.0,0.00013698,2]
[395452983,1764693043834,-500.0,0.00013698,2]
[395452984,1764693043843,-500.0,0.00013698,2]
[395452985,1764693043853,-500.0,0.00013698,2]
[395452986,1764693043864,-500.0,0.00013698,2]
[395452987,1764693043873,-500.0,0.00013698,2]
[395452988,1764693043882,-500.0,0.00013698,2]
[395452989,1764693043892,-500.0,0.00013698,2]
[395452990,1764693043901,-500.0,0.00013698,2]
[395452991,1764693043911,-1224.33,0.00013698,2]
[395452992,1764693043920,-500.0,0.00013698,2]
[395452993,1764693043929,-500.0,0.00013698,2]
[395452994,1764693043940,-500.0,0.00013698,2]
[395452996,1764693043949,-1446.73322912,0.00013698,2]
[395453000,1764693043983,-204.74677088,0.00013698,2]
[395453003,1764693043993,-485.67322912,0.00013698,2]
[395453005,1764693044005,-170.76677088,0.00013698,2]
[395453007,1764693044014,-487.2891332,0.00013698,2]
[395453009,1764693044025,-919.9908668,0.00013698,2]
[395453011,1764693044034,-298.20770882,0.00013698,2]
[395453012,1764693044043,-666.77,0.00013698,2]
[395453015,1764693044053,-440.38595875,0.00013698,2]
[395453017,1764693044064,-183.86331031,0.00013698,2]
[395453018,1764693044073,-2149.3,0.00013698,2]
[395453020,1764693044083,-500.0,0.00013698,2]
[395453022,1764693044093,-500.0,0.00013698,2]
[395453024,1764693044103,-500.0,0.00013698,2]
[395453026,1764693044113,-500.0,0.00013698,2]
[395453028,1764693044122,-501.13470142,0.00013698,2]
[395453030,1764693044132,-513.45619028,0.00013698,2]
[395453032,1764693044141,-500.0,0.00013698,2]
[395453034,1764693044151,-500.0,0.00013698,2]
[395453036,1764693044161,-56.95115076,0.00013698,2]
[395453190,1764693045723,-315.98676429,0.00013698,2]
[395453283,1764693046734,-127.06208495,0.00013698,2]
[395453284,1764693046743,-309.304628,0.00013698,2]
[395454319,1764693059647,159.50874574,8.219e-05,2]
[395455503,1764693880489,500.0,0.000201,120]
[395455508,1764693903022,250.0,0.0002,30]
[395455565,1764694232223,-594.75427879,0.00010109,2]
[395455566,1764694232233,-233.0,0.00010109,2]
[395455567,1764694232243,-86.01572121,0.00010211,2]
[395455568,1764694232355,-508.73855758,0.00010211,2]
[395455569,1764694232365,-594.75427879,0.00010314,2]
[395455570,1764694232374,-260.66032285,0.00010366,2]
[395455571,1764694232384,-3071.6369359,0.00011004,2]
[395455572,1764694232392,-353.75427879,0.00011283,2]
[395455573,1764694232402,-300.0,0.00011451,2]
[395455574,1764694232411,-300.0,0.00011451,2]
[395455575,1764694232420,-1200.0,0.00011451,2]
[395455576,1764694232430,-1200.0,0.00011452,2]
[395455577,1764694232440,-631.0,0.00011454,2]
[395455578,1764694232450,-990.0,0.00011454,2]
[395455579,1764694232459,-2154.0,0.00011454,2]
[395455581,1764694232469,-999.0,0.00012016,2]
[395455583,1764694232478,-307.57918097,0.00012366,2]
[395455584,1764694232489,-3032.39771742,0.00013586,2]
[395455585,1764694232499,-345.46789341,0.00013597,2]
[395455586,1764694232509,-280.98194403,0.00013597,2]
[395455587,1764694232518,-16210.05880253,0.00013598,2]
[395455588,1764694232530,-91581.58345952,0.00013598,2]
[395455589,1764694232542,-522.45757541,0.00013598,2]
[395455736,1764694234578,827.75427879,0.00010008,2]
[395455751,1764694238131,-446.94503474,0.00013597,2]
[395455757,1764694238185,-53.05496526,0.00013597,2]
[395455759,1764694238195,-627.23386022,0.00013597,2]
[395455761,1764694238204,-500.0,0.00013597,2]
[395455763,1764694238213,-345.60749278,0.00013597,2]
[395455765,1764694238223,-13.27745423,0.00013597,2]
[395455767,1764694238234,-486.72254577,0.00013597,2]
[395455769,1764694238243,-500.0,0.00013597,2]
[395455771,1764694238253,-500.0,0.00013597,2]
[395455773,1764694238262,-500.0,0.00013597,2]
[395455775,1764694238271,-70.2782231,0.00013597,2]
[395455945,1764694240238,-262.0624995,0.00013597,2]
[395456006,1764694241041,-167.6592774,0.00013597,2]
[395456008,1764694241051,-500.0,0.00013597,2]
[395456010,1764694241061,-500.0,0.00013597,2]
[395456012,1764694241070,-500.0,0.00013597,2]
[395456015,1764694241080,-17426.60179184,0.00013598,2]
[395456084,1764694241754,-374.08989249,0.00013598,2]
[395456247,1764694243235,-1235.17087944,0.00013462,2]
[395456517,1764694246265,-771.90658402,0.00013462,2]
[395456519,1764694246276,-1088.75747209,0.00013462,2]
[395469881,1764694862300,250.0,0.0002,30]
[395469971,1764694914224,4012.73697547,0.000101,2]
[395470019,1764695074419,-150.5,0.00021888,120]
[395470020,1764695074448,-48.5,0.00021898,120]
[395470021,1764695075290,-102.0,0.00021898,120]
[395470022,1764695075939,-78.47,0.00021908,120]
[395470023,1764695076748,-72.03,0.00021908,120]
[395470024,1764695080103,-500.0,0.00021918,120]
[395470025,1764695080136,-125.44493028,0.00022372,120]
[395470026,1764695080943,-298.80096944,0.00022372,120]
[395470027,1764695081578,-175.0,0.00022435,120]
[395470028,1764695081607,-176.0,0.00022435,120]
[395470029,1764695081637,-179.0,0.00022491,120]
[395470030,1764695081666,-233.0,0.00022547,120]
[395470031,1764695082121,-150.5,0.00022547,120]
[395470032,1764695082201,-150.5,0.00022547,120]
[395470033,1764695083037,-88.0,0.00022547,120]
[395470034,1764695083064,-228.97,0.0002273,120]
[395470035,1764695083094,-150.5,0.0002274,120]
[395470036,1764695083132,-251.51017347,0.00024658,120]
[395470037,1764695083722,-248.48982653,0.00024658,120]
[395470038,1764695084508,-155.82750951,0.00025,120]
[395470039,1764695084538,-2.98951984,0.00025,120]
[395470040,1764695085188,-209.96637052,0.00025,120]
[395470041,1764695086017,-22.39957078,0.00025,120]
[395470042,1764695088188,-337.96746693,0.00025,120]
[395470043,1764695088200,-162.03253307,0.00025,120]
[395470044,1764695088268,-359.52032278,0.00025,120]
[395470045,1764695088277,-64.72557694,0.00025,120]
[395470046,1764695088543,-298.80096944,0.00025,120]
[395470047,1764695088626,-21.53474758,0.00025,120]
[395470048,1764695088821,-50.68558608,0.00025,120]
[395470049,1764695088831,-124.31441392,0.00025,120]
[395470050,1764695088905,-75.68558608,0.00025,120]
[395470051,1764695088915,-100.31441392,0.00026,120]
[395470052,1764695088989,-179.0,0.00026,120]
[395470053,1764695089059,-163.0178979,0.00026,120]
[395470054,1764695089068,-69.9821021,0.00027,120]
[395470055,1764695089138,-23.69083,0.00027,120]
[395470056,1764695089784,-180.3236279,0.00027,120]
[395470057,1764695089794,-68.16619863,0.00027,120]
[395470058,1764695089862,-3.02034694,0.00027,120]
[395470059,1764695090090,-155.82750951,0.00027,120]
[395470060,1764695090209,-72.98594492,0.00027,120]
[395470061,1764695090219,-162.36951622,0.00027,120]
[395470062,1764695090664,-22.39957078,0.00027,120]
[395470063,1764695090733,-165.941313,0.00027,120]
[395470064,1764695090975,-86.74281397,0.00027,120]
[395470086,1764695172925,-113.25718603,0.00027,120]
[395470087,1764695172953,-191.55426397,0.00027,120]
[395470088,1764695173779,-228.61815603,0.00027,120]
[395470089,1764695173807,-304.81145,0.00027,120]
[395470090,1764695174375,-496.71977729,0.000273,120]
[395470091,1764695174940,-53.28022271,0.000273,120]
[395470092,1764695176280,-297.48326853,0.00027397,120]
[395470093,1764695176308,-500.0,0.00027397,120]
[395470094,1764695176349,-273.99656,0.000277,120]
[395470095,1764695176376,-350.7104,0.000277,120]
[395470096,1764695176403,-200.0,0.000277,120]
[395470097,1764695176435,-420.17242,0.000277,120]
[395470098,1764695176462,-304.81145,0.000277,120]
[395470099,1764695176493,-351.94672224,0.00028,120]
[395470100,1764695177705,-115.02984807,0.00028,120]
[395470101,1764695179125,-33.02342969,0.00028,120]
[395470102,1764695179155,-273.99656,0.000284,120]
[395470103,1764695179185,-350.7104,0.000284,120]
[395470104,1764695179212,-203.63521,0.000284,120]
[395470105,1764695179240,-420.17242,0.000284,120]
[395470106,1764695179268,-304.81145,0.000284,120]
[395470107,1764695179298,-140.2270483,0.00029,120]
[395470108,1764695179910,-59.7729517,0.00029,120]
[395470109,1764695181928,-1046.71977729,0.00029041,120]
[395470110,1764695182747,-273.99656,0.000291,120]
[395470111,1764695182775,-350.7104,0.000291,120]
[395470112,1764695183987,-420.17242,0.000291,120]
[395470113,1764695184017,-204.53454,0.000291,120]
[395470114,1764695184977,-100.27691,0.000291,120]
[395470116,1764695209970,1878.74903834,0.0001401,9]
[395470117,1764695218093,361.20268848,0.0001401,9]
[395470118,1764695226560,5000.0,0.0001401,9]
[395470119,1764695238773,200.0,0.00029,120]
[395470120,1764695250048,1009.76985055,0.0001401,9]
[395470210,1764695432282,-587.17907952,0.000101,2]
[395470219,1764695432457,-2832.91394501,0.000101,2]
[395470220,1764695432467,-233.0,0.000101,2]
[395470221,1764695432477,-185.87509031,0.00010224,2]
[395470222,1764695432487,-265.32591933,0.0001032,2]
[395470223,1764695432496,-3839.0564559,0.00011301,2]
[395470224,1764695432506,-300.0,0.00011452,2]
[395470225,1764695432520,-178.0,0.00011452,2]
[395470226,1764695432529,-300.0,0.00011452,2]
[395470227,1764695432539,-1200.0,0.00011453,2]
[395470228,1764695432550,-631.0,0.00011454,2]
[395470229,1764695432559,-396.961,0.00011454,2]
[395470230,1764695432568,-2154.0,0.00011454,2]
[395470231,1764695432578,-464.648,0.00011629,2]
[395470232,1764695432587,-847.6193212,0.00012046,2]
[395470233,1764695432599,-313.08458481,0.0001232,2]
[395470234,1764695432608,-353.75427879,0.00012606,2]
[395470235,1764695432618,-5351.4701397,0.00013383,2]
[395470236,1764695432627,-18550.61466658,0.00013498,2]
[395470237,1764695432657,-500.0,0.00013498,2]
[395470238,1764695435561,449.89694,0.00027,120]
[395470239,1764695435888,449.89694,0.000277,120]
[395470240,1764695436157,449.89694,0.000284,120]
[395470244,1764695438385,-1439.54370203,0.00013498,2]
[395470245,1764695438437,-1583.79013717,0.00013498,2]
[395470246,1764695438453,-5158.45203824,0.00013498,2]
[395470247,1764695438464,-573.475,0.00013597,2]
[395470248,1764695438475,-184.44,0.00013597,2]
[395470249,1764695438486,-152.36165063,0.00013598,2]
[395470250,1764695438496,-10000.0,0.00013598,2]
[395470251,1764695438507,-644.47494358,0.00013697,2]
[395470252,1764695438519,-500.0,0.00013697,2]
[395470253,1764695438529,-500.0,0.00013697,2]
[395470254,1764695438541,-500.0,0.00013697,2]
[395470255,1764695438551,-394.91577499,0.00013697,2]
[395470256,1764695438566,-105.08422501,0.00013697,2]
[395470257,1764695438577,-500.0,0.00013697,2]
[395470258,1764695438588,-241.92524494,0.00013697,2]
[395470259,1764695438600,-500.0,0.00013697,2]
[395470260,1764695438610,-500.0,0.00013697,2]
[395470261,1764695438621,-500.0,0.00013697,2]
[395470262,1764695438631,-196.2505796,0.00013698,2]
[395470263,1764695438641,-1436.092904,0.00013698,2]
[395470264,1764695438979,-1436.092904,0.00013698,2]
[395470265,1764695438990,-500.0,0.00013698,2]
[395470266,1764695439000,-500.0,0.00013698,2]
[395470267,1764695439010,-500.0,0.00013698,2]
[395470268,1764695439020,-500.0,0.00013698,2]
[395470269,1764695439029,-500.0,0.00013698,2]
[395470270,1764695439039,-500.0,0.00013698,2]
[395470271,1764695439049,-500.0,0.00013698,2]
[395470272,1764695439064,-483.1831597,0.00013698,2]
[395470273,1764695439082,-16.8168403,0.00013698,2]
[395470274,1764695439093,-325.51345817,0.00013698,2]
[395470637,1764695443280,150.5,0.00021908,120]
[395470663,1764695443534,-174.48654183,0.00013698,2]
[395470665,1764695443543,-500.0,0.00013698,2]
[395470667,1764695443553,-19.60348237,0.00013698,2]
[395470672,1764695443587,-480.39651763,0.00013698,2]
[395470674,1764695443600,-334.81895652,0.00013698,2]
[395470676,1764695443612,-165.18104348,0.00013698,2]
[395470678,1764695443621,-500.0,0.00013698,2]
[395470680,1764695443631,-500.0,0.00013698,2]
[395470682,1764695443641,-500.0,0.00013698,2]
[395470684,1764695443650,-500.0,0.00013698,2]
[395470686,1764695443659,-500.0,0.00013698,2]
[395470688,1764695443669,-500.0,0.00013698,2]
[395470690,1764695443678,-1370.68,0.00013698,2]
[395470692,1764695443688,-500.0,0.00013698,2]
[395470694,1764695443700,-536.94,0.00013698,2]
[395470696,1764695443710,-500.0,0.00013698,2]
[395470698,1764695443719,-500.0,0.00013698,2]
[395470700,1764695443729,-500.0,0.00013698,2]
[395470702,1764695443738,-500.0,0.00013698,2]
[395470704,1764695443748,-500.0,0.00013698,2]
[395470706,1764695443758,-500.0,0.00013698,2]
[395470708,1764695443768,-500.0,0.00013698,2]
[395470710,1764695443778,-500.31331659,0.00013698,2]
[395470712,1764695443788,-676.35,0.00013698,2]
[395470714,1764695443797,-500.0,0.00013698,2]
[395470716,1764695443807,-500.0,0.00013698,2]
[395470718,1764695443816,-500.0,0.00013698,2]
[395470720,1764695443826,-500.0,0.00013698,2]
[395470722,1764695443836,-500.0,0.00013698,2]
[395470724,1764695443846,-500.0,0.00013698,2]
[395470726,1764695443855,-500.0,0.00013698,2]
[395470728,1764695443864,-500.06361479,0.00013698,2]
[395470730,1764695443874,-500.0,0.00013698,2]
[395470732,1764695443883,-500.58127711,0.00013698,2]
[395470735,1764695443893,-381.94185554,0.00013698,2]
[395470736,1764695443902,-500.0,0.00013698,2]
[395470738,1764695443911,-531.83,0.00013698,2]
[395470740,1764695443921,-500.0,0.00013698,2]
[395470743,1764695443931,-500.0,0.00013698,2]
[395470745,1764695443941,-500.31204685,0.00013698,2]
[395470747,1764695443951,-35.80684564,0.00013698,2]
[395470752,1764695443990,53.13522,0.00021898,120]
[395470755,1764695444011,97.36478,0.00021898,120]
[395470778,1764695444224,150.5,0.00021888,120]
[395470826,1764695444680,150.5,0.00021908,120]
[395470873,1764695445144,228.97,0.00021898,120]
[395471011,1764695446407,-464.19315436,0.00013698,2]
[395471013,1764695446416,-418.40157552,0.00013698,2]
[395471015,1764695446425,-214.83376712,0.00013698,2]
[395476140,1764695502891,550.0,0.000273,120]
[395484864,1764695667130,372.35605,0.000273,120]
[395484865,1764695667151,500.0,0.000273,120]
[395484866,1764695667172,443.43955458,0.000273,120]
[395484867,1764695822898,250.0,0.0002,30]
[395484877,1764695995151,300.0,0.0002,30]
[395484946,1764696163194,150.5,0.0002191,120]
[395484947,1764696163655,150.5,0.000219,120]
[395484948,1764696164102,150.5,0.0002189,120]
[395485020,1764696472542,10000.0,0.0002,30]
[395485022,1764696487711,3179.49,9.5e-05,2]
[395485143,1764696638749,-248.0,0.00011988,2]
[395485145,1764696638759,-260.37080365,0.00011988,2]
[395485147,1764696638769,-2154.0,0.00011989,2]
[395485149,1764696638779,-631.0,0.00011989,2]
[395485151,1764696638789,-414.0,0.00011989,2]
[395485153,1764696638799,-353.75427879,0.00012847,2]
[395485155,1764696638809,-250.14357733,0.00013273,2]
[395485157,1764696638818,-497.066,0.00013326,2]
[395485159,1764696638828,-184.44047968,0.00013326,2]
[395485161,1764696638838,-200.0,0.000135,3]
[395485164,1764696638848,-3050.43439706,0.00013598,2]
[395485165,1764696638857,-500.0,0.0001369,2]
[395485194,1764696639115,-306.23878288,0.0001369,2]
[395485196,1764696639125,-201.93286099,0.0001369,2]
[395485198,1764696639135,-328.38931329,0.0001369,2]
[395485200,1764696639144,-500.0,0.00013697,2]
[395485202,1764696639154,-500.0,0.00013697,2]
[395485204,1764696639163,-469.34767146,0.00013697,2]
[395485206,1764696639173,-500.0,0.00013697,2]
[395485208,1764696639182,-196.74242623,0.00013697,2]
[395485210,1764696639192,-500.0,0.00013697,2]
[395485212,1764696639202,-500.0,0.00013697,2]
[395485214,1764696639212,-500.0,0.00013697,2]
[395485216,1764696639221,-169.87486,0.00013698,2]
[395485218,1764696639230,-28508.0352509,0.00013698,2]
[395485220,1764696639240,-500.0,0.00013698,2]
[395485222,1764696639250,-621.51385272,0.00013698,2]
[395485224,1764696639259,-500.0,0.00013698,2]
[395485226,1764696639269,-500.0,0.00013698,2]
[395485228,1764696639279,-500.0,0.00013698,2]
[395485230,1764696639289,-500.0,0.00013698,2]
[395485232,1764696639298,-500.0,0.00013698,2]
[395485234,1764696639307,-219.26190524,0.00013698,2]
[395485236,1764696639317,-500.0,0.00013698,2]
[395485238,1764696639327,-500.0,0.00013698,2]
[395485240,1764696639336,-500.0,0.00013698,2]
[395485242,1764696639345,-500.0,0.00013698,2]
[395485244,1764696639355,-500.0,0.00013698,2]
[395485246,1764696639364,-500.0,0.00013698,2]
[395485248,1764696639374,-500.0,0.00013698,2]
[395485251,1764696639386,-638.99,0.00013698,2]
[395485253,1764696639396,-500.0,0.00013698,2]
[395485254,1764696639406,-500.0,0.00013698,2]
[395485257,1764696639415,-500.0,0.00013698,2]
[395485259,1764696639425,-500.0,0.00013698,2]
[395485260,1764696639434,-500.0,0.00013698,2]
[395485262,1764696639445,-500.0,0.00013698,2]
[395485264,1764696639454,-500.0,0.00013698,2]
[395485267,1764696639464,-1119.18,0.00013698,2]
[395485269,1764696639473,-500.0,0.00013698,2]
[395485271,1764696639482,-500.0,0.00013698,2]
[395485273,1764696639492,-500.0,0.00013698,2]
[395485275,1764696639501,-500.0,0.00013698,2]
[395485277,1764696639511,-1215.97,0.00013698,2]
[395485279,1764696639522,-500.0,0.00013698,2]
[395485281,1764696639531,-500.0,0.00013698,2]
[395485283,1764696639540,-625.66,0.00013698,2]
[395485285,1764696639549,-500.0,0.00013698,2]
[395485287,1764696639559,-169.78205222,0.00013698,2]
[395485289,1764696639568,-500.0,0.00013698,2]
[395485291,1764696639577,-500.0,0.00013698,2]
[395485293,1764696639586,-500.0,0.00013698,2]
[395485295,1764696639600,-500.0,0.00013698,2]
[395485297,1764696639610,-500.0,0.00013698,2]
[395485299,1764696639619,-500.0,0.00013698,2]
[395485301,1764696639628,-500.0,0.00013698,2]
[395485303,1764696639637,-500.0,0.00013698,2]
[395485305,1764696639647,-500.0,0.00013698,2]
[395485307,1764696639655,-500.0,0.00013698,2]
[395485309,1764696639665,-500.0,0.00013698,2]
[395485311,1764696639675,-500.0,0.00013698,2]
[395485313,1764696639685,-500.0,0.00013698,2]
[395485315,1764696639695,-500.0,0.00013698,2]
[395485317,1764696639705,-500.0,0.00013698,2]
[395485320,1764696639715,-500.23288337,0.00013698,2]
[395485321,1764696639725,-877.5,0.00013698,2]
[395485323,1764696639735,-500.57584908,0.00013698,2]
[395485325,1764696639744,-500.0,0.00013698,2]
[395485327,1764696639753,-500.5658257,0.00013698,2]
[395485329,1764696639763,-1765.11,0.00013698,2]
[395485331,1764696639772,-1765.11,0.00013698,2]
[395485333,1764696639780,-1765.11,0.00013698,2]
[395485335,1764696639789,-1765.11,0.00013698,2]
[395485337,1764696639798,-1765.11,0.00013698,2]
[395485339,1764696639807,-1765.11,0.00013698,2]
[395485341,1764696639816,-1765.11,0.00013698,2]
[395485343,1764696639825,-1765.11,0.00013698,2]
[395485345,1764696639834,-500.0,0.00013698,2]
[395485347,1764696639843,-1765.11,0.00013698,2]
[395485349,1764696639852,-1765.11,0.00013698,2]
[395485351,1764696639861,-500.0,0.00013698,2]
[395485353,1764696639870,-1765.11,0.00013698,2]
[395485355,1764696639879,-1765.11,0.00013698,2]
[395485357,1764696639889,-1765.11,0.00013698,2]
[395485359,1764696639898,-1582.67,0.00013698,2]
[395485361,1764696639908,-1765.11,0.00013698,2]
[395485363,1764696639918,-1765.11,0.00013698,2]
[395485365,1764696639932,-1765.11,0.00013698,2]
[395485367,1764696639941,-1765.11,0.00013698,2]
[395485369,1764696639952,-500.0,0.00013698,2]
[395485371,1764696639962,-500.0,0.00013698,2]
[395485373,1764696639973,-1765.11,0.00013698,2]
[395485375,1764696639984,-1765.11,0.00013698,2]
[395485377,1764696639994,-1765.11,0.00013698,2]
[395485379,1764696640007,-1765.11,0.00013698,2]
[395485380,1764696640016,-500.0,0.00013698,2]
[395485382,1764696640026,-1765.11,0.00013698,2]
[395485386,1764696640036,-1765.11,0.00013698,2]
[395485388,1764696640045,-1765.11117309,0.00013698,2]
[395485390,1764696640055,-500.0,0.00013698,2]
[395485391,1764696640064,-500.0,0.00013698,2]
[395485393,1764696640074,-500.0,0.00013698,2]
[395485395,1764696640083,-500.0,0.00013698,2]
[395485397,1764696640093,-500.0,0.00013698,2]
[395485398,1764696640102,-500.0,0.00013698,2]
[395485400,1764696640111,-500.0,0.00013698,2]
[395485402,1764696640120,-500.0,0.00013698,2]
[395485404,1764696640129,-500.0,0.00013698,2]
[395485407,1764696640139,-995.81,0.00013698,2]
[395485410,1764696640148,-500.0,0.00013698,2]
[395485413,1764696640157,-500.0,0.00013698,2]
[395485415,1764696640167,-500.88143603,0.00013698,2]
[395485416,1764696640176,-500.0,0.00013698,2]
[395485418,1764696640186,-500.0,0.00013698,2]
[395485420,1764696640197,-500.0,0.00013698,2]
[395485422,1764696640206,-500.0,0.00013698,2]
[395485424,1764696640216,-500.0,0.00013698,2]
[395485426,1764696640225,-500.0,0.00013698,2]
[395485428,1764696640235,-500.0,0.00013698,2]
[395485430,1764696640244,-500.0,0.00013698,2]
[395485432,1764696640260,-500.0,0.00013698,2]
[395485434,1764696640269,-500.0,0.00013698,2]
[395485436,1764696640279,-500.0,0.00013698,2]
[395485438,1764696640289,-500.0,0.00013698,2]
[395485440,1764696640298,-500.0,0.00013698,2]
[395485442,1764696640309,-500.0,0.00013698,2]
[395485444,1764696640319,-500.0,0.00013698,2]
[395485446,1764696640329,-500.0,0.00013698,2]
[395485448,1764696640339,-500.0,0.00013698,2]
[395485450,1764696640350,-500.0,0.00013698,2]
[395485452,1764696640359,-500.0,0.00013698,2]
[395485454,1764696640369,-538.24378453,0.00013698,2]
[395485456,1764696640378,-500.0,0.00013698,2]
[395485458,1764696640388,-500.0,0.00013698,2]
[395485460,1764696640402,-500.87323364,0.00013698,2]
[395485462,1764696640412,-500.0,0.00013698,2]
[395485464,1764696640421,-500.0,0.00013698,2]
[395485466,1764696640431,-500.0,0.00013698,2]
[395485469,1764696640441,-500.0,0.00013698,2]
[395485471,1764696640455,-501.31080986,0.00013698,2]
[395485472,1764696640464,-500.0,0.00013698,2]
[395485474,1764696640474,-500.0,0.00013698,2]
[395485476,1764696640483,-191.16667412,0.00013698,2]
[395485478,1764696640493,-500.0,0.00013698,2]
[395485480,1764696640502,-501.81269928,0.00013698,2]
[395485482,1764696640513,-500.0,0.00013698,2]
[395485484,1764696640522,-500.0,0.00013698,2]
[395485486,1764696640532,-500.0,0.00013698,2]
[395485488,1764696640541,-924.66,0.00013698,2]
[395485490,1764696640550,-500.0,0.00013698,2]
[395485492,1764696640560,-500.0,0.00013698,2]
[395485493,1764696640570,-552.24160421,0.00013698,2]
[395485495,1764696640580,-500.0,0.00013698,2]
[395485497,1764696640590,-951.31,0.00013698,2]
[395485499,1764696640600,-1188.31,0.00013698,2]
[395485501,1764696640610,-500.0,0.00013698,2]
[395485503,1764696640619,-269.775245,0.00013698,2]
[395485505,1764696640628,-269.775245,0.00013698,2]
[395485507,1764696640637,-269.775245,0.00013698,2]
[395485509,1764696640646,-269.775245,0.00013698,2]
[395485511,1764696640655,-269.775245,0.00013698,2]
[395485513,1764696640666,-269.775245,0.00013698,2]
[395485515,1764696640676,-1371.46,0.00013698,2]
[395485517,1764696640686,-269.775245,0.00013698,2]
[395485519,1764696640700,-269.775245,0.00013698,2]
[395485521,1764696640710,-269.775245,0.00013698,2]
[395485523,1764696640719,-269.775245,0.00013698,2]
[395485525,1764696640728,-269.775245,0.00013698,2]
[395485526,1764696640737,-500.0,0.00013698,2]
[395485528,1764696640746,-269.775245,0.00013698,2]
[395485530,1764696640756,-269.775245,0.00013698,2]
[395485532,1764696640766,-269.775245,0.00013698,2]
[395485534,1764696640775,-269.775245,0.00013698,2]
[395485536,1764696640784,-269.775245,0.00013698,2]
[395485538,1764696640794,-500.86786843,0.00013698,2]
[395485540,1764696640804,-269.775245,0.00013698,2]